[Event "44th Chess Olympiad Open 2022"]
[Site "Chennai"]
[Date "2022.08.06"]
[Round "8.91"]
[White "Jaiswal Prashant S"]
[Black "Christopher, Art"]
[Result "1/2-1/2"]
[WhiteElo "1683"]
[BlackElo "1616"]
[Annotator "NA RC"]
[PlyCount "66"]
[EventDate "2022.??.??"]
[TimeControl "60"]

1. d4 {[%emt 0:00:31]} Nf6 {[%emt 0:00:19]} 2. Nf3 {[%emt 0:00:17]} g6 {
[%emt 0:00:31]} 3. c4 {[%emt 0:01:28]} Bg7 {[%emt 0:03:08]} 4. Nc3 {[%emt 0:00:
00]} d6 {[%emt 0:01:33]} 5. e3 {[%emt 0:00:20]} O-O {[%emt 0:00:43]} 6. Be2 {
[%emt 0:00:10]} a6 {[%emt 0:00:15]} 7. O-O {[%emt 0:00:10]} Bg4 {[%emt 0:02:25]
} 8. h3 {[%emt 0:00:20]} Bc8 {[%emt 0:03:49]} 9. Qc2 {[%emt 0:02:34]} c5 {
[%emt 0:01:02]} 10. b3 {[%emt 0:04:49]} e6 {[%emt 0:04:41]} 11. dxc5 {[%emt 0:
00:00]} dxc5 {[%emt 0:00:46]} 12. Bb2 {[%emt 0:00:49]} Nc6 {[%emt 0:01:55]} 13.
Rfd1 {[%emt 0:04:09]} Qc7 {[%emt 0:00:58]} 14. Rab1 {[%emt 0:07:06]} Bd7 {
[%emt 0:06:48]} 15. Ne4 {[%emt 0:04:46]} e5 {[%emt 0:08:49]} 16. Nxf6+ {
[%emt 0:09:47]} Bxf6 {[%emt 0:01:09]} 17. a3 {[%emt 0:00:31]} Rad8 {[%emt 0:00:
00]} 18. Bd3 {[%emt 0:06:32]} Ne7 {[%emt 0:11:52]} 19. Nh2 {[%emt 0:02:43]} Bg7
{[%emt 0:06:40]} 20. Nf1 {[%emt 0:01:29]} f5 {[%emt 0:00:57]} 21. Be2 {[%emt 0:
00:00]} Nc6 {[%emt 0:07:18]} 22. Rbc1 {[%emt 0:05:24]} f4 {[%emt 0:03:41]} 23.
e4 {[%emt 0:05:02]} Nd4 {[%emt 0:00:41]} 24. Bxd4 {[%emt 0:00:42]} exd4 {
[%emt 0:00:18]} 25. f3 {[%emt 0:02:14]} Qe5 {[%emt 0:05:37]} 26. Bd3 {[%emt 0:
00:00]} Qg5 {[%emt 0:02:49]} 27. Kh1 {[%emt 0:00:59]} Be5 {[%emt 0:00:40]} 28.
Qf2 {[%emt 0:04:04]} h5 {[%emt 0:00:17]} 29. Rc2 {[%emt 0:02:19]} Qh6 {[%emt 0:
00:00]} 30. Kg1 {[%emt 0:04:06]} g5 {[%emt 0:02:24]} 31. Nh2 {[%emt 0:00:16]}
Kf7 {[%emt 0:04:19]} 32. Kf1 {[%emt 0:00:49]} Ke7 {[%emt 0:01:22]} 33. Ke2 {
[%emt 0:00:57]} g4 {[%emt 0:02:10]} 1/2-1/2

[Event "44th Chess Olympiad Open 2022"]
[Site "Chennai"]
[Date "2022.08.07"]
[Round "9.1"]
[White "Gukesh D"]
[Black "Mamedyarov, Shakhriyar"]
[Result "1/2-1/2"]
[WhiteElo "2684"]
[BlackElo "2759"]
[Annotator "TA"]
[PlyCount "68"]
[EventDate "2022.??.??"]
[TimeControl "60"]

{[%evp 12,68,9,0,12,21,14,22,23,21,10,10,10,8,15,11,27,6,19,8,12,0,0,0,0,0,0,0,
0,0,0,0,0,0,29,33,38,32,39,27,35,0,3,0,0,0,8,8,8,0,0,0,0,0,0,0,0,0,0]} 1. d4 {
[%emt 0:01:02]} d5 {[%emt 0:00:25]} 2. c4 {[%emt 0:01:25]} dxc4 {[%emt 0:00:10]
} 3. e4 {[%emt 0:02:30]} e5 {[%emt 0:00:11]} 4. Nf3 {[%emt 0:00:29][%cal Yg1f3,
Yf3d4,Yd4b3]} Bb4+ {[%emt 0:00:54]} 5. Bd2 {[%emt 0:03:11]} Bxd2+ {[%emt 0:00:
11]} 6. Qxd2 {[%emt 0:02:22]} exd4 {[%emt 0:02:20]} 7. Qxd4 {[%emt 0:03:27]}
Qxd4 {[%emt 0:03:21] The main line 7...Qxd4 scores better than 7...Nf6. D20:
Queen's Gambit Accepted: 3 e3 and 3 e4.} 8. Nxd4 {[%emt 0:00:06]} a6 {[%emt 0:
12:26]} 9. Bxc4 {[%emt 0:07:04]} Ne7 {[%emt 0:00:22]} 10. Nc3 {[%emt 0:00:45]}
b5 {[%emt 0:03:17]} 11. Be2 {[%emt 0:02:06]} c5 {[%emt 0:04:32]} 12. Nb3 {
[%emt 0:00:07]} c4 {[%emt 0:00:25] [#]} 13. Nd4 $146 {[%emt 0:08:25]} ({
Predecessor:} 13. Nc5 Nd7 14. Nxd7 Bxd7 15. O-O-O O-O-O 16. f4 Bc6 17. Bf3
Rxd1+ 18. Rxd1 Rd8 19. Rxd8+ Kxd8 {½-½ (28) Stanec,N (2562)-Danner,G (2432)
Graz 2004}) 13... Nbc6 {[%emt 0:04:54]} 14. O-O-O {[%emt 0:00:58]} Bd7 {
[%emt 0:12:53]} 15. Nxc6 {[%emt 0:10:22]} Nxc6 {[%emt 0:05:11]} 16. Rd6 {
[%emt 0:04:43]} O-O-O {[%emt 0:00:10]} 17. Rhd1 {[%emt 0:00:29]} Kc7 $1 {
[%emt 0:00:07]} 18. f4 {[%emt 0:03:47]} Be6 {[%emt 0:03:34]} 19. e5 {[%emt 0:
00:00]} Rxd6 {[%emt 0:00:09]} 20. Rxd6 {[%emt 0:00:12]} Rd8 $1 {[%emt 0:00:05]}
21. Rxd8 {[%emt 0:01:42]} Kxd8 $11 {[%emt 0:01:53] Endgame KBN-KBN} 22. Kd2 {
[%emt 0:02:05]} f6 {[%emt 0:08:18]} 23. exf6 {[%emt 0:01:09]} gxf6 {[%emt 0:02:
07]} 24. Ke3 {[%emt 0:01:10]} f5 {[%emt 0:09:16]} 25. Bf3 {[%emt 0:00:00]} Kc7
{[%emt 0:00:20]} 26. Ne2 {[%emt 0:06:07]} Ne7 {[%emt 0:02:24] The position is
equal.} 27. h3 {[%emt 0:05:56]} Kd6 {[%emt 0:05:01]} 28. g4 {[%emt 0:00:24]}
fxg4 {[%emt 0:04:48]} 29. hxg4 {[%emt 0:00:03]} Bd5 {[%emt 0:00:00]} 30. Bxd5 {
[%emt 0:04:18]} Nxd5+ {[%emt 0:00:31]} 31. Kd4 {[%emt 0:00:00]} Nb4 {[%emt 0:
06:17]} 32. Nc3 {[%emt 0:07:45]} Nd3 {[%emt 0:02:08]} 33. b3 {[%emt 0:05:29]}
Nxf4 {[%emt 0:00:17]} 34. Ne4+ {[%emt 0:00:15]} Kc6 {[%emt 0:00:00] Weighted
Error Value: White=0.04 (flawless) /Black=0.02 (flawless)} 1/2-1/2

[Event "44th Chess Olympiad Open 2022"]
[Site "Chennai"]
[Date "2022.08.07"]
[Round "9.1"]
[White "Mamedov, Rauf"]
[Black "Sarin Nihal"]
[Result "1/2-1/2"]
[WhiteElo "2656"]
[BlackElo "2651"]
[Annotator "TA"]
[PlyCount "66"]
[EventDate "2022.??.??"]
[TimeControl "60"]

{[%evp 14,66,25,6,8,8,2,7,0,-12,-12,-12,-12,-10,-10,-36,-32,-35,0,0,0,0,42,25,
21,14,44,0,6,3,68,58,36,36,37,36,36,54,55,36,52,30,25,-5,-6,-13,-5,-31,-28,-91,
-13,-83,-19,-20,-25]} 1. e4 {[%emt 0:00:07]} e6 {[%emt 0:00:39]} 2. d4 {
[%emt 0:00:04]} d5 {[%emt 0:00:10]} 3. Nd2 {[%emt 0:00:02]} c5 {[%emt 0:00:12]}
4. Ngf3 {[%emt 0:00:02]} cxd4 {[%emt 0:00:23]} 5. Nxd4 {[%emt 0:00:04]} Nc6 {
[%emt 0:00:07]} 6. Bb5 {[%emt 0:00:04]} Bd7 {[%emt 0:00:05]} 7. Nxc6 {[%emt 0:
00:00]} bxc6 {[%emt 0:00:05]} 8. Bd3 {[%emt 0:00:02]} Bd6 {[%emt 0:00:13] C07:
French Tarrasch: 3...c5, 4 Ngf3 and 4 exd5 Qxd5.} 9. Qe2 {[%emt 0:00:04]} e5 {
[%emt 0:00:22] is cutting edge theory.} 10. c4 {[%emt 0:00:02]} d4 {[%emt 0:00:
00]} 11. f4 {[%emt 0:00:49]} Nf6 {[%emt 0:30:38]} (11... exf4 12. e5 Bb8 13.
O-O $14) 12. h3 {[%emt 0:00:18] Inhibits Bg4.} Qe7 {[%emt 0:11:41]} (12... exf4
$2 13. e5 O-O 14. exf6 $18 (14. exd6 $2 Re8 $19)) 13. O-O {[%emt 0:14:13]} exf4
{[%emt 0:10:13]} 14. b4 {[%emt 0:11:19] [#]} O-O $146 {[%emt 0:11:07]} ({
Don't do} 14... Bxb4 15. e5 $14) ({Predecessor:} 14... c5 15. bxc5 Be5 16. Nb3
g5 17. Qf2 Rd8 18. Na5 O-O 19. c6 Be6 20. Rb1 Nh5 {0-1 (37) Kotronias,V (2517)
-Sturt,R (2494) Banja Vrujci 2021}) 15. c5 {[%emt 0:00:00]} Be5 {[%emt 0:00:40]
} 16. Nc4 {[%emt 0:00:00]} g5 {[%emt 0:00:37]} 17. Bb2 {[%emt 0:00:00]} Rad8 {
[%emt 0:05:05]} 18. Rad1 {[%emt 0:07:22]} Bc8 {[%emt 0:00:05]} 19. Qf2 {
[%emt 0:06:40]} Nd7 {[%emt 0:02:20]} 20. Bxd4 {[%emt 0:22:34]} Bxd4 {[%emt 0:
00:00]} 21. Qxd4 {[%emt 0:00:10] Threatening e5.} f6 {[%emt 0:00:01] Inhibits
e5.} (21... a5 $1 $11) 22. Qd6 {[%emt 0:01:08] White is more active.} Qxd6 {
[%emt 0:00:39]} 23. Nxd6 {[%emt 0:01:02]} Ne5 {[%emt 0:00:04]} 24. Be2 {
[%emt 0:02:33]} Be6 {[%emt 0:00:15]} 25. a4 {[%emt 0:01:04]} Rd7 {[%emt 0:00:
00]} 26. b5 {[%emt 0:02:54]} Rb8 {[%emt 0:00:51]} 27. Rb1 {[%emt 0:15:08][%cal
Yh3h4]} Kf8 {[%emt 0:05:44]} 28. b6 {[%emt 0:07:02]} axb6 {[%emt 0:01:21]} 29.
Rxb6 {[%emt 0:00:05]} Ra8 {[%emt 0:02:19]} (29... Rxb6 $2 30. cxb6 Rxd6 31. b7
$18) 30. Ba6 {[%emt 0:05:17]} Rc7 {[%emt 0:02:55]} 31. Ra1 {[%emt 0:01:58]} (
31. Rd1 $11) 31... Nd7 {[%emt 0:02:09]} (31... Rca7 $17 32. Bb7 Rxa4) 32. Rb7 {
[%emt 0:01:37] [#]} (32. Bb7 $11 {keeps the balance.} Ra5 33. Rxc6 Rxc6 34.
Bxc6) 32... Rxb7 {[%emt 0:00:06]} ({Black should try} 32... Ra7 $1 $17 {
Threatens to win with ...Rcxb7.} 33. Rxc7 Rxc7) 33. Bxb7 $11 {[%emt 0:00:03]}
Ra7 {[%emt 0:00:46] Weighted Error Value: White=0.16 (very precise) /Black=0.
17 (very precise)} 1/2-1/2

[Event "44th Chess Olympiad Open 2022"]
[Site "Chennai"]
[Date "2022.08.07"]
[Round "9.1"]
[White "Praggnanandhaa R"]
[Black "Durarbayli, Vasif"]
[Result "1-0"]
[WhiteElo "2648"]
[BlackElo "2638"]
[Annotator "TA"]
[PlyCount "131"]
[EventDate "2022.??.??"]
[TimeControl "60"]

{[%evp 15,131,22,34,31,33,33,28,24,43,23,52,8,25,30,38,34,35,19,28,25,30,35,26,
8,2,0,0,6,8,6,7,8,14,0,0,0,14,21,20,6,29,9,31,31,37,22,36,23,54,60,52,17,55,0,
0,-40,-26,-148,-137,-124,-142,-135,0,-87,0,-122,0,0,0,0,0,0,0,0,119,118,122,
121,123,119,278,272,294,0,0,0,0,0,527,485,647,0,0,0,0,-558,-558,-537,-536,-517,
-468,-456,0,0,322,341,1793,1647,12837,12838,12838,12837,12839,12839,12840,
12840,12840,12840]} 1. d4 {[%emt 0:00:38]} Nf6 {[%emt 0:00:45]} 2. c4 {[%emt 0:
00:00]} e6 {[%emt 0:00:38]} 3. Nf3 {[%emt 0:00:06]} b6 {[%emt 0:00:03]} 4. g3 {
[%emt 0:00:12]} Ba6 {[%emt 0:00:03]} 5. b3 {[%emt 0:00:24]} Bb4+ {[%emt 0:00:
00]} 6. Bd2 {[%emt 0:00:05]} Bxd2+ {[%emt 0:00:04]} 7. Qxd2 {[%emt 0:00:35]} c6
{[%emt 0:00:05]} 8. Bg2 {[%emt 0:02:53]} d5 {[%emt 0:02:40]} 9. O-O {[%emt 0:
00:00] E15: Queen's Indian: 4 g3 sidelines, 4 g3 Ba6 and 4 g3 Bb7 early
deviations.} Nbd7 {[%emt 0:00:43]} 10. Rc1 {[%emt 0:06:02]} O-O {[%emt 0:00:16]
} 11. a4 {[%emt 0:07:13] White has an edge.} Bb7 {[%emt 0:00:43] [#]} 12. Nc3
$146 {[%emt 0:18:12][%cal Ya4a5]} ({Predecessor:} 12. a5 c5 13. a6 Bc6 14. cxd5
Bxd5 15. Nc3 Ne4 16. Nxe4 Bxe4 17. Qf4 Bd5 18. e4 Bxb3 {1-0 (37) Gunina,V 
(2510)-Bodnaruk,A (2428) St Petersburg 2017}) 12... Rb8 {[%emt 0:11:50]} 13.
Ne1 {[%emt 0:07:31]} c5 {[%emt 0:19:13]} 14. cxd5 {[%emt 0:00:47]} cxd4 {
[%emt 0:00:16]} 15. Qxd4 {[%emt 0:00:58]} Nc5 {[%emt 0:00:10]} 16. Rab1 {
[%emt 0:04:05]} exd5 {[%emt 0:03:27]} 17. Nf3 {[%emt 0:02:13]} Ne6 {[%emt 0:00:
00]} 18. Qd1 {[%emt 0:01:46]} Ne4 {[%emt 0:04:05]} 19. Nb5 {[%emt 0:04:56]} Qf6
{[%emt 0:04:00]} 20. Rc2 {[%emt 0:02:48]} a5 {[%emt 0:11:19]} 21. e3 {[%emt 0:
00:00]} Rbc8 {[%emt 0:00:42]} 22. Rbc1 {[%emt 0:00:23]} N6c5 {[%emt 0:02:03]}
23. Nfd4 {[%emt 0:02:33]} g6 {[%emt 0:05:26]} 24. Qf3 {[%emt 0:08:32]} Qe7 {
[%emt 0:00:44]} 25. Bf1 {[%emt 0:00:14]} Ng5 {[%emt 0:05:57]} 26. Qd1 {[%emt 0:
00:00]} Qf6 {[%emt 0:01:05]} 27. Qg4 {[%emt 0:05:11]} Nge4 {[%emt 0:01:21]} 28.
Qf4 {[%emt 0:00:00]} Qe7 {[%emt 0:00:41]} 29. h4 {[%emt 0:08:58][%cal Yh2h4,
Yh4h5]} Ba6 {[%emt 0:02:52]} 30. h5 {[%emt 0:00:00]} Bxb5 {[%emt 0:00:00]} 31.
axb5 {[%emt 0:00:00]} Rce8 {[%emt 0:01:02]} 32. Rd1 {[%emt 0:00:00]} Qd7 {
[%emt 0:02:39]} 33. Bg2 {[%emt 0:00:00]} f5 {[%emt 0:00:55]} 34. Qf3 {[%emt 0:
00:00]} (34. hxg6 $14 hxg6 35. Qh6) 34... g5 $11 {[%emt 0:00:53]} 35. Rb2 {
[%emt 0:02:26]} Kh8 {[%emt 0:00:54]} 36. b4 {[%emt 0:00:41]} (36. Rc2 $11 {
keeps the balance.}) 36... axb4 {[%emt 0:01:01]} 37. Rxb4 {[%emt 0:00:02]} Nc3
{[%emt 0:00:27]} 38. Rd2 {[%emt 0:00:28]} N3e4 {[%emt 0:00:26]} (38... Ra8 $142
39. Rbb2 Ra1+ 40. Bf1 N5e4) 39. Rd1 $1 $17 {[%emt 0:00:28]} Nc3 {[%emt 0:00:54]
} 40. Rd2 {[%emt 0:00:20]} N5e4 {[%emt 0:01:50]} (40... Ra8 $17 {Threatens to
win with ...Ra1+.} 41. Rbb2 Ra1+ 42. Bf1 N5e4) 41. Rc2 $11 {[%emt 0:08:16]} Ra8
{[%emt 0:05:50]} 42. Rb3 $1 {[%emt 0:07:27]} Ra1+ {[%emt 0:02:52]} 43. Bf1 $1 {
[%emt 0:02:28]} Na4 {[%emt 0:02:04] Hoping for ...Nac5.} 44. Rd3 $1 {[%emt 0:
00:00]} Re1 {[%emt 0:05:54]} (44... Qf7 $11) 45. Ra3 $1 $16 {[%emt 0:03:23]}
Nac5 {[%emt 0:01:03][%cal Yf5f4]} 46. Rca2 $1 {[%emt 0:02:09]} f4 {[%emt 0:00:
00]} 47. exf4 {[%emt 0:04:39]} g4 $2 {[%emt 0:00:11]} (47... Qh3 $16 {was
worth a try.} 48. Qg2 Qxg2+ 49. Kxg2 gxf4) 48. Qh1 $1 $18 {[%emt 0:01:07] And
now Ra8 would win.} Ne6 {[%emt 0:03:30]} 49. Ra8 $2 {[%emt 0:02:33]} ({White
has to play} 49. Nxe6 $1 $18 Qxe6 50. h6) 49... Nxd4 $11 {[%emt 0:01:07]} 50.
Rxf8+ {[%emt 0:00:07]} Kg7 {[%emt 0:00:02]} 51. Rfa8 {[%emt 0:01:23]} Nf3+ $2 {
[%emt 0:01:51] Pair of Knights!} (51... Qxb5 $2 52. Kg2 Rxf1 53. Qxf1 $18) (
51... Kh6 $1 $11) 52. Kg2 $18 {[%emt 0:00:17]} Kh6 {[%emt 0:00:28]} 53. Rc2 $2
{[%emt 0:00:47]} (53. R2a7 $1 $18 {[%cal Ra7d7]} Qf5 54. Rb8) 53... Qe7 $11 {
[%emt 0:01:55]} 54. Rc6+ {[%emt 0:00:37]} Nf6 $1 {[%emt 0:00:01][%cal Ye7e4]}
55. Ra3 $2 {[%emt 0:01:49]} Qxa3 $19 {[%emt 0:01:15]} 56. Rxf6+ {[%emt 0:00:01]
} Kg7 {[%emt 0:00:03]} 57. Rxb6 {[%emt 0:00:20] [#] Strongly threatening h6+.}
h6 $1 {[%emt 0:00:57]} 58. Rg6+ {[%emt 0:00:43]} Kh7 $2 {[%emt 0:00:36]} ({
Better is} 58... Kf7 $19 {( -> ...Nd2)} 59. Rxg4 Nd2) 59. Rxg4 $11 {[%emt 0:00:
40]} d4 $2 {[%emt 0:00:30] [#]} (59... Qb3 $11 {and Black has nothing to worry.
}) 60. Rg6 $1 $18 {[%emt 0:00:42] Black must now prevent Qh3.} ({Weaker is} 60.
Kh3 Qa8 $11) 60... Qe7 $2 {[%emt 0:00:31] [#]} (60... Nd2 61. Kh3 Ne4) 61. Bd3
$1 {[%emt 0:00:31] Intending Qh3 and mate. White is clearly winning.} Qa3 {
[%emt 0:00:23]} (61... Rxh1 62. Re6+) 62. Re6+ {[%emt 0:00:26]} Qxd3 {[%emt 0:
00:05]} 63. Rxe1 {[%emt 0:00:02] Re7+ would kill now.} Nxe1+ {[%emt 0:00:55]}
64. Qxe1 {[%emt 0:00:02] White wants to mate with b6.} Qxb5 {[%emt 0:00:05]}
65. Qe4+ {[%emt 0:00:17]} Kg8 {[%emt 0:00:01]} 66. Qg6+ {[%emt 0:00:12]
Weighted Error Value: White=0.31/Black=0.52} 1-0

[Event "44th Chess Olympiad Open 2022"]
[Site "Chennai"]
[Date "2022.08.07"]
[Round "9.1"]
[White "Abasov, Nijat"]
[Black "Sadhwani, Raunak"]
[Result "1-0"]
[WhiteElo "2633"]
[BlackElo "2611"]
[Annotator "ChessBase"]
[PlyCount "105"]
[EventDate "2022.??.??"]
[TimeControl "60"]

1. e4 {[%emt 0:01:34]} e5 {[%emt 0:00:06]} 2. Nf3 {[%emt 0:00:05]} Nc6 {
[%emt 0:00:03]} 3. Bb5 {[%emt 0:00:20]} Nf6 {[%emt 0:00:08]} 4. O-O {[%emt 0:
00:00]} Nxe4 {[%emt 0:00:03]} 5. Re1 {[%emt 0:00:10]} Nd6 {[%emt 0:00:04]} 6.
Nxe5 {[%emt 0:00:31]} Be7 {[%emt 0:00:09]} 7. Bf1 {[%emt 0:00:10]} Nxe5 {
[%emt 0:00:10]} 8. Rxe5 {[%emt 0:00:09]} O-O {[%emt 0:00:03]} 9. Nc3 {[%emt 0:
00:00]} Bf6 {[%emt 0:02:01]} 10. Re1 {[%emt 0:00:11]} Re8 {[%emt 0:00:05]} 11.
Nd5 {[%emt 0:00:19]} Rxe1 {[%emt 0:00:33]} 12. Qxe1 {[%emt 0:00:05]} b6 {
[%emt 0:00:08]} 13. Nxf6+ {[%emt 0:02:31]} Qxf6 {[%emt 0:00:16]} 14. d3 {
[%emt 0:00:04]} Bb7 {[%emt 0:00:04]} 15. Qe3 {[%emt 0:00:11]} c5 {[%emt 0:00:
00]} 16. Qf4 {[%emt 0:00:13]} Qxf4 {[%emt 0:00:10]} 17. Bxf4 {[%emt 0:00:09]}
Nf5 {[%emt 0:00:03]} 18. a4 {[%emt 0:02:24]} Nd4 {[%emt 0:05:57]} 19. c3 {
[%emt 0:01:38]} Ne6 {[%emt 0:00:04]} 20. Bd6 {[%emt 0:03:21]} a5 {[%emt 0:00:
00]} 21. Be2 {[%emt 0:10:19]} f6 {[%emt 0:02:31]} 22. f4 {[%emt 0:06:43]} g6 {
[%emt 0:05:32]} 23. g4 {[%emt 0:04:56]} Rc8 {[%emt 0:09:33]} 24. f5 {[%emt 0:
00:00]} gxf5 {[%emt 0:00:06]} 25. gxf5 {[%emt 0:00:12]} Ng7 {[%emt 0:00:09]}
26. Rf1 {[%emt 0:16:10]} Bd5 {[%emt 0:02:28]} 27. c4 {[%emt 0:07:27]} Bc6 {
[%emt 0:00:11]} 28. Bd1 {[%emt 0:03:24]} Kf7 {[%emt 0:02:09]} 29. Bg3 {[%emt 0:
00:00]} d5 {[%emt 0:04:59]} 30. cxd5 {[%emt 0:00:41]} Bxd5 {[%emt 0:00:11]} 31.
Rf4 {[%emt 0:01:13]} Re8 {[%emt 0:11:18]} 32. Kf2 {[%emt 0:00:52]} Re5 {
[%emt 0:01:44]} 33. Rh4 {[%emt 0:06:57]} Rxf5+ {[%emt 0:02:07]} 34. Ke1 {
[%emt 0:00:05]} Rg5 {[%emt 0:16:25]} 35. Rxh7 {[%emt 0:02:33]} Kg6 {[%emt 0:00:
00]} 36. Rh8 {[%emt 0:00:50]} Nf5 {[%emt 0:00:23]} 37. Bf2 {[%emt 0:00:44]} Nd4
{[%emt 0:02:14]} 38. h4 {[%emt 0:04:56]} Rf5 {[%emt 0:15:21]} 39. Bxd4 {
[%emt 0:03:31]} cxd4 {[%emt 0:02:32]} 40. Rb8 {[%emt 0:00:07]} Re5+ {[%emt 0:
00:00]} 41. Kd2 {[%emt 0:32:01]} Rf5 {[%emt 0:30:13]} 42. Rd8 {[%emt 0:04:21]}
Bf7 {[%emt 0:00:00]} 43. Rxd4 {[%emt 0:00:00]} b5 {[%emt 0:00:00]} 44. Ke3 {
[%emt 0:00:00]} Rf1 {[%emt 0:00:00]} 45. Bf3 {[%emt 0:00:00]} b4 {[%emt 0:00:
00]} 46. Rg4+ {[%emt 0:00:00]} Kh6 {[%emt 0:00:00]} 47. Rf4 {[%emt 0:00:00]}
Kg7 {[%emt 0:00:00]} 48. Rf5 {[%emt 0:00:00]} Rb1 {[%emt 0:00:00]} 49. Rxa5 {
[%emt 0:00:00]} Rxb2 {[%emt 0:00:00]} 50. Rb5 {[%emt 0:00:00]} b3 {[%emt 0:00:
00]} 51. Rb7 {[%emt 0:00:00]} Kf8 {[%emt 0:00:17]} 52. Bd1 {[%emt 0:00:00]} Ra2
{[%emt 0:03:48]} 53. Rxf7+ {[%emt 0:00:00]} 1-0